[Event "*** Titled Tuesday Blitz"]
[Site "Chess.com"]
[Date "2020.04.14"]
[Round "6"]
[White "TigrVShlyape"]
[Black "SmoothAsAHedgehog"]
[Result "1-0"]
[WhiteElo "2860"]
[BlackElo "2674"]
[TimeControl "180+1"]
[EndTime "11:05:34 PDT"]
[Termination "TigrVShlyape won by resignation"]

1. d4 {[%clk 0:03:00.9]} 1... Nf6 {[%clk 0:02:58.8]} 2. Nf3 {[%clk 0:03:00.3]}
2... e6 {[%clk 0:02:58.7]} 3. Bf4 {[%clk 0:02:56.6]} 3... b6 {[%clk 0:02:58]} 4.
e3 {[%clk 0:02:56.4]} 4... Bb7 {[%clk 0:02:57.8]} 5. h3 {[%clk 0:02:55.4]} 5...
Be7 {[%clk 0:02:57.5]} 6. Nbd2 {[%clk 0:02:52.7]} 6... O-O {[%clk 0:02:56.9]} 7.
Bd3 {[%clk 0:02:52.5]} 7... c5 {[%clk 0:02:56.9]} 8. O-O {[%clk 0:02:51.5]} 8...
cxd4 {[%clk 0:02:56.3]} 9. exd4 {[%clk 0:02:51.2]} 9... d6 {[%clk 0:02:56.8]}
10. a4 {[%clk 0:02:49.7]} 10... a6 {[%clk 0:02:56.8]} 11. a5 {[%clk 0:02:47.1]}
11... b5 {[%clk 0:02:56.5]} 12. c4 {[%clk 0:02:45.3]} 12... bxc4 {[%clk
0:02:44]} 13. Nxc4 {[%clk 0:02:44.8]} 13... Nd5 {[%clk 0:02:39.4]} 14. Bh2
{[%clk 0:02:43.9]} 14... Nc6 {[%clk 0:02:34.9]} 15. Re1 {[%clk 0:02:42.4]} 15...
Rc8 {[%clk 0:02:26.9]} 16. Qb3 {[%clk 0:02:21.3]} 16... Rb8 {[%clk 0:01:42.5]}
17. Qa3 {[%clk 0:02:15.1]} 17... Ndb4 {[%clk 0:01:35.2]} 18. Bb1 {[%clk
0:02:07]} 18... g6 {[%clk 0:01:05.6]} 19. Qe3 {[%clk 0:01:51.8]} 19... Ba8
{[%clk 0:00:50.3]} 20. Qh6 {[%clk 0:01:44.2]} 20... Rb5 {[%clk 0:00:48.2]} 21.
Ra3 {[%clk 0:01:31.8]} 21... Rh5 {[%clk 0:00:46.1]} 22. Qd2 {[%clk 0:01:30.4]}
22... Rb5 {[%clk 0:00:37.1]} 23. Rc1 {[%clk 0:01:03.8]} 23... d5 {[%clk
0:00:30.7]} 24. Nce5 {[%clk 0:00:59.2]} 24... Nxe5 {[%clk 0:00:29]} 25. Nxe5
{[%clk 0:00:54.7]} 25... Rxa5 {[%clk 0:00:27]} 26. Rf3 {[%clk 0:00:51.7]} 26...
Ra1 {[%clk 0:00:20.6]} 27. Bf4 {[%clk 0:00:46.9]} 27... Nc6 {[%clk 0:00:15.3]}
28. Nxc6 {[%clk 0:00:35.9]} 28... Bxc6 {[%clk 0:00:16.2]} 29. Bh6 {[%clk
0:00:36.1]} 29... Re8 {[%clk 0:00:09.9]} 30. Qf4 {[%clk 0:00:35.3]} 30... f5
{[%clk 0:00:10]} 31. Bxf5 {[%clk 0:00:33.3]} 31... Rxc1+ {[%clk 0:00:07.2]} 32.
Qxc1 {[%clk 0:00:32.3]} 32... exf5 {[%clk 0:00:04.4]} 33. Qxc6 {[%clk
0:00:32.2]} 33... Bf8 {[%clk 0:00:02.7]} 34. Bxf8 {[%clk 0:00:21.8]} 34... Kxf8
{[%clk 0:00:03.6]} 35. g4 {[%clk 0:00:19]} 35... Re1+ {[%clk 0:00:02.5]} 36. Kg2
{[%clk 0:00:18.9]} 36... Qe8 {[%clk 0:00:02.7]} 37. Qd6+ {[%clk 0:00:16.3]}
37... Qe7 {[%clk 0:00:02.5]} 38. Qxe7+ {[%clk 0:00:15.3]} 38... Kxe7 {[%clk
0:00:02.5]} 39. gxf5 {[%clk 0:00:15.7]} 39... g5 {[%clk 0:00:01.9]} 40. f6+
{[%clk 0:00:15.9]} 40... Kf7 {[%clk 0:00:01.9]} 41. Rf5 {[%clk 0:00:16.4]} 41...
Re4 {[%clk 0:00:02.4]} 42. Rxd5 {[%clk 0:00:16.3]} 42... Kxf6 {[%clk 0:00:03.3]}
43. Rd6+ {[%clk 0:00:14.1]} 43... Kf5 {[%clk 0:00:03.8]} 44. Kg3 {[%clk
0:00:13.9]} 44... h5 {[%clk 0:00:02.7]} 45. Rd5+ {[%clk 0:00:10.5]} 45... Kf6
{[%clk 0:00:02.7]} 46. Kf3 {[%clk 0:00:10.4]} 46... Rf4+ {[%clk 0:00:03]} 47.
Kg2 {[%clk 0:00:10.2]} 47... Re4 {[%clk 0:00:02.9]} 48. b4 {[%clk 0:00:06.1]}
48... h4 {[%clk 0:00:02.5]} 49. Kf3 {[%clk 0:00:05.8]} 49... Rf4+ {[%clk
0:00:02.7]} 50. Ke3 {[%clk 0:00:05.7]} 50... Kg6 {[%clk 0:00:02.5]} 51. Rd6+
{[%clk 0:00:04.8]} 51... Kg7 {[%clk 0:00:01.4]} 52. Rxa6 {[%clk 0:00:05.1]}
52... Rf8 {[%clk 0:00:01.5]} 53. Ra5 {[%clk 0:00:04.2]} 53... Rb8 {[%clk
0:00:01.8]} 54. Rxg5+ {[%clk 0:00:04]} 54... Kf6 {[%clk 0:00:02.4]} 55. Rh5
{[%clk 0:00:04.3]} 55... Rxb4 {[%clk 0:00:02.9]} 56. Rxh4 {[%clk 0:00:04.7]}
56... Kg5 {[%clk 0:00:03]} 57. Rg4+ {[%clk 0:00:04.4]} 57... Kf5 {[%clk
0:00:03.7]} 58. Rf4+ {[%clk 0:00:04.9]} 58... Kg5 {[%clk 0:00:03.9]} 59. h4+
{[%clk 0:00:05.7]} 59... Kg6 {[%clk 0:00:04.5]} 60. Ke4 {[%clk 0:00:06.2]} 60...
Rb2 {[%clk 0:00:04.5]} 61. d5 {[%clk 0:00:06.3]} 61... Rd2 {[%clk 0:00:04.4]}
62. Ke5 {[%clk 0:00:06.4]} 62... Re2+ {[%clk 0:00:04.5]} 63. Kd6 {[%clk
0:00:06.6]} 63... Rd2 {[%clk 0:00:04.6]} 64. Ke6 {[%clk 0:00:07]} 64... Re2+
{[%clk 0:00:05]} 65. Kd7 {[%clk 0:00:07.4]} 65... Rd2 {[%clk 0:00:04.8]} 66. d6
{[%clk 0:00:07.8]} 66... Kg7 {[%clk 0:00:04.5]} 67. Ke7 {[%clk 0:00:08]} 67...
Re2+ {[%clk 0:00:04.5]} 68. Kd8 {[%clk 0:00:08.2]} 68... Rd2 {[%clk 0:00:04.6]}
69. d7 {[%clk 0:00:08.5]} 69... Rd1 {[%clk 0:00:02.8]} 70. h5 {[%clk 0:00:07.7]}
70... Kg8 {[%clk 0:00:02.5]} 71. Rf5 {[%clk 0:00:07.8]} 71... Kg7 {[%clk
0:00:02.3]} 72. Kc7 {[%clk 0:00:07.7]} 72... Rc1+ {[%clk 0:00:02.6]} 73. Kd6
{[%clk 0:00:07.9]} 73... Rd1+ {[%clk 0:00:02.6]} 74. Rd5 {[%clk 0:00:08.2]}
74... Rxd5+ {[%clk 0:00:03]} 75. Kxd5 {[%clk 0:00:08.2]} 1-0

[Event "*** Titled Tuesday Blitz"]
[Site "Chess.com"]
[Date "2020.04.14"]
[Round "6"]
[White "starworld123"]
[Black "kircsaj"]
[Result "1/2-1/2"]
[WhiteElo "2578"]
[BlackElo "2317"]
[TimeControl "180+1"]
[EndTime "11:05:40 PDT"]
[Termination "Game drawn by repetition"]

1. Nf3 {[%clk 0:02:17.2]} 1... Nf6 {[%clk 0:02:59]} 2. g3 {[%clk 0:02:18.1]}
2... g6 {[%clk 0:02:59]} 3. Bg2 {[%clk 0:02:19]} 3... Bg7 {[%clk 0:02:59.4]} 4.
O-O {[%clk 0:02:19.9]} 4... O-O {[%clk 0:03:00]} 5. c4 {[%clk 0:02:20.8]} 5...
d6 {[%clk 0:03:00.3]} 6. d4 {[%clk 0:02:21.7]} 6... Nbd7 {[%clk 0:02:59.9]} 7.
Nc3 {[%clk 0:02:22.6]} 7... e5 {[%clk 0:02:59.7]} 8. e4 {[%clk 0:02:23.5]} 8...
exd4 {[%clk 0:02:59.6]} 9. Nxd4 {[%clk 0:02:24.4]} 9... Re8 {[%clk 0:02:59.9]}
10. h3 {[%clk 0:02:25]} 10... a6 {[%clk 0:02:59.9]} 11. Be3 {[%clk 0:02:17.8]}
11... Rb8 {[%clk 0:02:58.9]} 12. Qc2 {[%clk 0:02:15]} 12... c5 {[%clk
0:02:57.2]} 13. Nde2 {[%clk 0:02:13.8]} 13... b5 {[%clk 0:02:57.1]} 14. cxb5
{[%clk 0:02:13.7]} 14... axb5 {[%clk 0:02:57.3]} 15. Rfd1 {[%clk 0:02:12.5]}
15... b4 {[%clk 0:02:56.2]} 16. Nd5 {[%clk 0:02:02.6]} 16... Nxd5 {[%clk
0:02:55.7]} 17. Rxd5 {[%clk 0:02:03.5]} 17... Nf6 {[%clk 0:02:39.9]} 18. Rd2
{[%clk 0:02:03.6]} 18... Qe7 {[%clk 0:02:26.6]} 19. Rad1 {[%clk 0:01:23.6]}
19... b3 {[%clk 0:02:13.4]} 20. axb3 {[%clk 0:01:21.2]} 20... Be6 {[%clk
0:02:13.9]} 21. Nc1 {[%clk 0:01:15.4]} 21... Red8 {[%clk 0:02:10.3]} 22. e5
{[%clk 0:01:02]} 22... dxe5 {[%clk 0:02:07.5]} 23. Rxd8+ {[%clk 0:01:01.4]}
23... Rxd8 {[%clk 0:02:07.3]} 24. Rxd8+ {[%clk 0:01:02.3]} 24... Qxd8 {[%clk
0:02:07.8]} 25. Bxc5 {[%clk 0:01:03.2]} 25... Bf5 {[%clk 0:02:02.7]} 26. Qe2
{[%clk 0:00:55.1]} 26... Nd7 {[%clk 0:02:02.2]} 27. b4 {[%clk 0:00:55.1]} 27...
Qc7 {[%clk 0:02:01]} 28. Nb3 {[%clk 0:00:54.3]} 28... Be6 {[%clk 0:02:00.2]} 29.
Qc2 {[%clk 0:00:51.2]} 29... Bf8 {[%clk 0:01:53.5]} 30. Nd2 {[%clk 0:00:43.7]}
30... Nxc5 {[%clk 0:01:48]} 31. bxc5 {[%clk 0:00:43.2]} 31... Bxc5 {[%clk
0:01:48.4]} 32. Ne4 {[%clk 0:00:43.5]} 32... Bb6 {[%clk 0:01:43.1]} 33. Nf6+
{[%clk 0:00:44]} 33... Kf8 {[%clk 0:01:36.1]} 34. Nxh7+ {[%clk 0:00:37.8]} 34...
Ke7 {[%clk 0:01:35.4]} 35. Qxc7+ {[%clk 0:00:27]} 35... Bxc7 {[%clk 0:01:35.4]}
36. Ng5 {[%clk 0:00:27.9]} 36... Bb3 {[%clk 0:01:35.2]} 37. Ne4 {[%clk
0:00:26.2]} 37... Bb6 {[%clk 0:01:35.5]} 38. Nd2 {[%clk 0:00:25.9]} 38... Be6
{[%clk 0:01:32.4]} 39. Kf1 {[%clk 0:00:25.6]} 39... f5 {[%clk 0:01:32.4]} 40. h4
{[%clk 0:00:25.2]} 40... Bd4 {[%clk 0:01:32.3]} 41. b3 {[%clk 0:00:20.2]} 41...
Bc3 {[%clk 0:01:31.9]} 42. Nc4 {[%clk 0:00:20.7]} 42... e4 {[%clk 0:01:30.5]}
43. Ke2 {[%clk 0:00:20.5]} 43... Bd4 {[%clk 0:01:24.9]} 44. Bf1 {[%clk
0:00:17.4]} 44... Bd5 {[%clk 0:01:09.4]} 45. Bh3 {[%clk 0:00:16.1]} 45... Be6
{[%clk 0:00:58.8]} 46. Nd2 {[%clk 0:00:13.3]} 46... Kd6 {[%clk 0:00:58.2]} 47.
g4 {[%clk 0:00:10.9]} 47... Bf6 {[%clk 0:00:53.6]} 48. gxf5 {[%clk 0:00:09.5]}
48... gxf5 {[%clk 0:00:53.7]} 49. h5 {[%clk 0:00:10.1]} 49... Bg5 {[%clk
0:00:53.9]} 50. Nc4+ {[%clk 0:00:09.9]} 50... Kc5 {[%clk 0:00:54.2]} 51. Ne3
{[%clk 0:00:09.3]} 51... Bf7 {[%clk 0:00:42.4]} 52. Bxf5 {[%clk 0:00:07.9]}
52... Bxh5+ {[%clk 0:00:41.6]} 53. Bg4 {[%clk 0:00:08.6]} 53... Bf7 {[%clk
0:00:41.2]} 54. Bf5 {[%clk 0:00:08.5]} 54... Bxb3 {[%clk 0:00:39.7]} 55. Bxe4
{[%clk 0:00:09.1]} 55... Kd4 {[%clk 0:00:38.2]} 56. Bd3 {[%clk 0:00:07.4]} 56...
Bxe3 {[%clk 0:00:37.2]} 57. fxe3+ {[%clk 0:00:08.3]} 57... Ke5 {[%clk
0:00:37.6]} 58. Kd2 {[%clk 0:00:08.9]} 58... Bd5 {[%clk 0:00:37.8]} 59. Kc3
{[%clk 0:00:09.5]} 59... Bb7 {[%clk 0:00:37.6]} 60. Kd2 {[%clk 0:00:10]} 60...
Bd5 {[%clk 0:00:37.8]} 61. Kc3 {[%clk 0:00:10.3]} 61... Bb7 {[%clk 0:00:38.4]}
62. Bc4 {[%clk 0:00:10.8]} 62... Be4 {[%clk 0:00:38.5]} 63. Bf1 {[%clk
0:00:10.9]} 63... Bf3 {[%clk 0:00:38]} 64. Kd2 {[%clk 0:00:11.3]} 64... Ke4
{[%clk 0:00:37.3]} 65. Ba6 {[%clk 0:00:10.5]} 65... Ke5 {[%clk 0:00:37.1]} 66.
Bb5 {[%clk 0:00:11.4]} 66... Bb7 {[%clk 0:00:36.7]} 67. Ke1 {[%clk 0:00:11.8]}
67... Be4 {[%clk 0:00:36.7]} 68. Kf2 {[%clk 0:00:12.1]} 68... Bb7 {[%clk
0:00:36.6]} 69. Ke2 {[%clk 0:00:12.6]} 69... Be4 {[%clk 0:00:35.9]} 70. Ba6
{[%clk 0:00:12.7]} 70... Bc6 {[%clk 0:00:35.5]} 71. Kd3 {[%clk 0:00:13]} 71...
Be4+ {[%clk 0:00:35.1]} 72. Kd2 {[%clk 0:00:13.6]} 72... Bc6 {[%clk 0:00:35]}
73. Bf1 {[%clk 0:00:14.2]} 73... Be4 {[%clk 0:00:34.7]} 74. Bd3 {[%clk
0:00:14.3]} 74... Bc6 {[%clk 0:00:33.8]} 75. Ke2 {[%clk 0:00:14.1]} 75... Bb7
{[%clk 0:00:33.3]} 76. Kf2 {[%clk 0:00:13.6]} 76... Bc6 {[%clk 0:00:33.3]} 77.
Be2 {[%clk 0:00:14]} 77... Bb7 {[%clk 0:00:31.9]} 78. Bf3 {[%clk 0:00:14.5]}
78... Ba6 {[%clk 0:00:32.4]} 79. Kg3 {[%clk 0:00:14.5]} 79... Bc4 {[%clk
0:00:32.9]} 80. Bg2 {[%clk 0:00:14.9]} 80... Be6 {[%clk 0:00:32.8]} 81. Kf3
{[%clk 0:00:15.5]} 81... Bd5+ {[%clk 0:00:32.9]} 82. Kf2 {[%clk 0:00:16]} 82...
Bc4 {[%clk 0:00:32.5]} 83. Bf1 {[%clk 0:00:16.3]} 83... Bd5 {[%clk 0:00:32.6]}
84. Be2 {[%clk 0:00:16.9]} 84... Be4 {[%clk 0:00:32.4]} 85. Ke1 {[%clk
0:00:17.1]} 85... Bc6 {[%clk 0:00:31.9]} 86. Kd2 {[%clk 0:00:18]} 86... Be4
{[%clk 0:00:32]} 87. Ba6 {[%clk 0:00:18.7]} 87... Bc6 {[%clk 0:00:32.1]} 88. Bd3
{[%clk 0:00:17.2]} 88... Bd5 {[%clk 0:00:32.1]} 1/2-1/2

[Event "*** Titled Tuesday Blitz"]
[Site "Chess.com"]
[Date "2020.04.14"]
[Round "6"]
[White "misha_chessone"]
[Black "NM2019"]
[Result "1-0"]
[WhiteElo "2185"]
[BlackElo "2034"]
[TimeControl "180+1"]
[EndTime "11:05:51 PDT"]
[Termination "misha_chessone won on time"]

1. d4 {[%clk 0:03:00.9]} 1... Nf6 {[%clk 0:02:58.8]} 2. c4 {[%clk 0:03:01]} 2...
g6 {[%clk 0:02:59]} 3. Nc3 {[%clk 0:03:00.9]} 3... Bg7 {[%clk 0:02:59.4]} 4. e4
{[%clk 0:03:01.4]} 4... d6 {[%clk 0:02:59.7]} 5. Be2 {[%clk 0:03:01.9]} 5... O-O
{[%clk 0:02:58.5]} 6. Bg5 {[%clk 0:03:02.4]} 6... c6 {[%clk 0:02:55.2]} 7. Qd2
{[%clk 0:03:02]} 7... e5 {[%clk 0:02:52.2]} 8. Nf3 {[%clk 0:03:01.5]} 8... Nbd7
{[%clk 0:02:49.9]} 9. O-O {[%clk 0:03:01]} 9... Re8 {[%clk 0:02:47.3]} 10. Rfe1
{[%clk 0:02:54.2]} 10... Qc7 {[%clk 0:02:46.1]} 11. Rad1 {[%clk 0:02:53.1]}
11... a6 {[%clk 0:02:40.6]} 12. d5 {[%clk 0:02:46.6]} 12... c5 {[%clk
0:02:27.1]} 13. a4 {[%clk 0:02:45.4]} 13... Rb8 {[%clk 0:02:19.7]} 14. Bd3
{[%clk 0:02:38.1]} 14... Rf8 {[%clk 0:02:09.8]} 15. h3 {[%clk 0:02:30.8]} 15...
Nb6 {[%clk 0:02:01.1]} 16. Ra1 {[%clk 0:02:11.3]} 16... Nbd7 {[%clk 0:02:00.1]}
17. Bh6 {[%clk 0:02:10.4]} 17... Re8 {[%clk 0:01:48.4]} 18. Be3 {[%clk
0:02:09.4]} 18... Nh5 {[%clk 0:01:44.9]} 19. Qc2 {[%clk 0:02:03.1]} 19... Qd8
{[%clk 0:01:43]} 20. a5 {[%clk 0:02:00.2]} 20... Ndf6 {[%clk 0:01:32.5]} 21. Bg5
{[%clk 0:01:57.7]} 21... h6 {[%clk 0:01:29.9]} 22. Be3 {[%clk 0:01:52.1]} 22...
g5 {[%clk 0:01:28.1]} 23. Be2 {[%clk 0:01:40.8]} 23... Nf4 {[%clk 0:01:27.3]}
24. Nh2 {[%clk 0:01:31.2]} 24... Bd7 {[%clk 0:01:17.3]} 25. Qd1 {[%clk
0:01:19.3]} 25... Qc8 {[%clk 0:01:14.8]} 26. Ng4 {[%clk 0:01:03.5]} 26... Nxg4
{[%clk 0:01:11.8]} 27. Bxg4 {[%clk 0:01:03.4]} 27... Bxg4 {[%clk 0:01:08.5]} 28.
hxg4 {[%clk 0:01:03.3]} 28... Kh7 {[%clk 0:00:49.5]} 29. f3 {[%clk 0:00:58.3]}
29... Ng6 {[%clk 0:00:47.9]} 30. Na4 {[%clk 0:00:51.2]} 30... Qd8 {[%clk
0:00:44.7]} 31. Nb6 {[%clk 0:00:50.7]} 31... Qe7 {[%clk 0:00:43.5]} 32. Qd2
{[%clk 0:00:49.4]} 32... Nf4 {[%clk 0:00:41.6]} 33. Rad1 {[%clk 0:00:41.7]}
33... Rbd8 {[%clk 0:00:38.1]} 34. Qc1 {[%clk 0:00:39.5]} 34... h5 {[%clk
0:00:37.2]} 35. Bxf4 {[%clk 0:00:33.4]} 35... gxf4 {[%clk 0:00:36.5]} 36. gxh5
{[%clk 0:00:32.3]} 36... Qh4 {[%clk 0:00:33.8]} 37. Qd2 {[%clk 0:00:29.9]} 37...
Qxh5 {[%clk 0:00:32]} 38. Kf2 {[%clk 0:00:23.4]} 38... Qg5 {[%clk 0:00:23.2]}
39. Rh1+ {[%clk 0:00:20.1]} 39... Kg6 {[%clk 0:00:22.9]} 40. Rdg1 {[%clk
0:00:20.1]} 40... Rh8 {[%clk 0:00:22.6]} 41. Kf1 {[%clk 0:00:18.4]} 41... Bf6
{[%clk 0:00:20.6]} 42. Qf2 {[%clk 0:00:17.4]} 42... Rxh1 {[%clk 0:00:18.7]} 43.
Rxh1 {[%clk 0:00:17.7]} 43... Rh8 {[%clk 0:00:18.8]} 44. Rxh8 {[%clk 0:00:17.5]}
44... Bxh8 {[%clk 0:00:19.7]} 45. Ke2 {[%clk 0:00:17.4]} 45... Bf6 {[%clk
0:00:19]} 46. Kd3 {[%clk 0:00:17.2]} 46... Qh5 {[%clk 0:00:18.8]} 47. Ke2 {[%clk
0:00:16.9]} 47... Qh2 {[%clk 0:00:18.4]} 48. Qf1 {[%clk 0:00:15.8]} 48... Bh4
{[%clk 0:00:18]} 49. Kd3 {[%clk 0:00:15.4]} 49... Qg3 {[%clk 0:00:17.4]} 50. Na4
{[%clk 0:00:14]} 50... Kf6 {[%clk 0:00:16.3]} 51. Nc3 {[%clk 0:00:13.6]} 51...
Ke7 {[%clk 0:00:15.5]} 52. Kc2 {[%clk 0:00:13.4]} 52... Kf6 {[%clk 0:00:15]} 53.
Kd3 {[%clk 0:00:13.5]} 53... Ke7 {[%clk 0:00:14.5]} 54. Kc2 {[%clk 0:00:13.6]}
54... Kf6 {[%clk 0:00:14.4]} 55. Kb3 {[%clk 0:00:13.7]} 55... Ke7 {[%clk
0:00:14.1]} 56. Na4 {[%clk 0:00:13.4]} 56... Kd7 {[%clk 0:00:13.1]} 57. Nb6+
{[%clk 0:00:13.5]} 57... Kc7 {[%clk 0:00:13]} 58. Na4 {[%clk 0:00:13.6]} 58...
Kd7 {[%clk 0:00:12.5]} 59. Nc3 {[%clk 0:00:14.1]} 59... Kc7 {[%clk 0:00:11.6]}
60. Ne2 {[%clk 0:00:14.2]} 60... Qg7 {[%clk 0:00:10.2]} 61. Nc3 {[%clk
0:00:12.7]} 61... Qg5 {[%clk 0:00:09.6]} 62. Kc2 {[%clk 0:00:12.4]} 62... Qg3
{[%clk 0:00:09.2]} 63. Ne2 {[%clk 0:00:12.2]} 63... Qg5 {[%clk 0:00:08.3]} 64.
Ng1 {[%clk 0:00:10.7]} 64... Qg3 {[%clk 0:00:07.4]} 65. Nh3 {[%clk 0:00:10.4]}
65... Qg7 {[%clk 0:00:06.3]} 66. Kb3 {[%clk 0:00:10.3]} 66... Qg3 {[%clk
0:00:05.8]} 67. Ng1 {[%clk 0:00:09.7]} 67... Bf6 {[%clk 0:00:05]} 68. Ne2 {[%clk
0:00:08.7]} 68... Qg7 {[%clk 0:00:04.9]} 69. Nc3 {[%clk 0:00:08.7]} 69... Bh4
{[%clk 0:00:04.5]} 70. Ka4 {[%clk 0:00:08.6]} 70... Qg3 {[%clk 0:00:03.8]} 71.
Kb3 {[%clk 0:00:08.6]} 71... Qg7 {[%clk 0:00:03.2]} 72. Kc2 {[%clk 0:00:09]}
72... Qg3 {[%clk 0:00:03]} 73. Kd2 {[%clk 0:00:08.5]} 73... Qg7 {[%clk
0:00:03.9]} 74. Ne2 {[%clk 0:00:08.4]} 74... Qg3 {[%clk 0:00:04.8]} 75. Nxg3
{[%clk 0:00:08.3]} 75... Bxg3 {[%clk 0:00:05.7]} 76. Qh1 {[%clk 0:00:08]} 76...
b6 {[%clk 0:00:05.5]} 77. axb6+ {[%clk 0:00:07.8]} 77... Kxb6 {[%clk 0:00:05.3]}
78. Kc2 {[%clk 0:00:08.2]} 1-0

[Event "*** Titled Tuesday Blitz"]
[Site "Chess.com"]
[Date "2020.04.14"]
[Round "6"]
[White "sandromareco"]
[Black "lifeissofun"]
[Result "1-0"]
[WhiteElo "2880"]
[BlackElo "2218"]
[TimeControl "180+1"]
[EndTime "11:05:59 PDT"]
[Termination "sandromareco won by resignation"]

1. d4 {[%clk 0:02:47]} 1... Nf6 {[%clk 0:02:59.4]} 2. Bf4 {[%clk 0:02:46.3]}
2... b6 {[%clk 0:02:56.6]} 3. e3 {[%clk 0:02:46.1]} 3... Bb7 {[%clk 0:02:56.5]}
4. Nf3 {[%clk 0:02:44.2]} 4... g6 {[%clk 0:02:57]} 5. Be2 {[%clk 0:02:43.6]}
5... Bg7 {[%clk 0:02:57.1]} 6. O-O {[%clk 0:02:44]} 6... O-O {[%clk 0:02:57]} 7.
c3 {[%clk 0:02:42.6]} 7... d6 {[%clk 0:02:57.5]} 8. Nbd2 {[%clk 0:01:59.5]} 8...
c5 {[%clk 0:02:55.8]} 9. a4 {[%clk 0:01:59.3]} 9... a6 {[%clk 0:02:55.3]} 10.
Re1 {[%clk 0:01:56.4]} 10... Nbd7 {[%clk 0:02:49.2]} 11. Bd3 {[%clk 0:01:55.2]}
11... Ra7 {[%clk 0:02:38.8]} 12. e4 {[%clk 0:01:53.9]} 12... Qa8 {[%clk
0:02:38.9]} 13. e5 {[%clk 0:01:41.3]} 13... Nd5 {[%clk 0:02:33.9]} 14. Bg3
{[%clk 0:01:39]} 14... cxd4 {[%clk 0:02:31.7]} 15. cxd4 {[%clk 0:01:32.2]} 15...
dxe5 {[%clk 0:02:26.9]} 16. dxe5 {[%clk 0:01:31.8]} 16... Nc5 {[%clk 0:02:20.9]}
17. Bc4 {[%clk 0:01:30.8]} 17... Rd8 {[%clk 0:02:18.7]} 18. Qe2 {[%clk
0:01:28.2]} 18... Nb4 {[%clk 0:02:11.9]} 19. Red1 {[%clk 0:01:25.7]} 19... e6
{[%clk 0:01:52.9]} 20. Bh4 {[%clk 0:01:25.2]} 20... Rd7 {[%clk 0:01:48.8]} 21.
Bf6 {[%clk 0:01:21]} 21... Bd5 {[%clk 0:01:46.4]} 22. Bxg7 {[%clk 0:01:19.3]}
22... Kxg7 {[%clk 0:01:46.6]} 23. Bxd5 {[%clk 0:01:17.8]} 23... Qxd5 {[%clk
0:01:37.4]} 24. Nc4 {[%clk 0:01:16.5]} 24... Qc6 {[%clk 0:01:34]} 25. Nd6 {[%clk
0:01:13.4]} 25... Ra8 {[%clk 0:01:12.3]} 26. Nd4 {[%clk 0:01:12.2]} 26... Qc7
{[%clk 0:01:06.2]} 27. a5 {[%clk 0:01:11]} 27... Nb7 {[%clk 0:00:59]} 28. Rac1
{[%clk 0:01:01.3]} 28... Qb8 {[%clk 0:00:50.1]} 29. axb6 {[%clk 0:01:00.2]}
29... Nxd6 {[%clk 0:00:48.3]} 30. exd6 {[%clk 0:00:58.2]} 30... Qxb6 {[%clk
0:00:44.1]} 31. Qe5+ {[%clk 0:00:57.5]} 31... Kg8 {[%clk 0:00:37.1]} 32. Nxe6
{[%clk 0:00:40.9]} 32... fxe6 {[%clk 0:00:32]} 33. Rc7 {[%clk 0:00:39.2]} 33...
Rf7 {[%clk 0:00:32.9]} 34. Rxf7 {[%clk 0:00:34.6]} 34... Kxf7 {[%clk 0:00:32.5]}
35. Qf4+ {[%clk 0:00:32.8]} 35... Kg7 {[%clk 0:00:27.5]} 36. Qe5+ {[%clk
0:00:30.6]} 36... Kf7 {[%clk 0:00:27.7]} 37. Rd4 {[%clk 0:00:28.7]} 37... Nd5
{[%clk 0:00:26.6]} 38. Rxd5 {[%clk 0:00:28.1]} 38... exd5 {[%clk 0:00:23.9]} 39.
Qxd5+ {[%clk 0:00:28.1]} 39... Kf6 {[%clk 0:00:23.5]} 40. Qxa8 {[%clk
0:00:28.1]} 40... Qxd6 {[%clk 0:00:23.5]} 41. Qf3+ {[%clk 0:00:27.5]} 41... Kg7
{[%clk 0:00:22.5]} 42. g3 {[%clk 0:00:27.8]} 42... Qb6 {[%clk 0:00:19.6]} 43.
Qc3+ {[%clk 0:00:27.1]} 43... Kg8 {[%clk 0:00:19.3]} 44. Qc4+ {[%clk 0:00:26.9]}
44... Kg7 {[%clk 0:00:19.1]} 45. b3 {[%clk 0:00:27.1]} 45... Qd6 {[%clk
0:00:18.6]} 46. h4 {[%clk 0:00:26.7]} 46... Qd1+ {[%clk 0:00:19]} 47. Kg2 {[%clk
0:00:27.1]} 47... Qd6 {[%clk 0:00:19.2]} 48. Qc3+ {[%clk 0:00:27]} 48... Kg8
{[%clk 0:00:18.5]} 49. Qf3 {[%clk 0:00:27.9]} 49... Qb6 {[%clk 0:00:18.2]} 50.
Qd5+ {[%clk 0:00:27.5]} 50... Kg7 {[%clk 0:00:18.5]} 51. g4 {[%clk 0:00:26.7]}
51... Kh6 {[%clk 0:00:18.7]} 52. Qg5+ {[%clk 0:00:22.6]} 52... Kg7 {[%clk
0:00:18.6]} 53. Qe7+ {[%clk 0:00:22.5]} 53... Kg8 {[%clk 0:00:18.2]} 54. Qe8+
{[%clk 0:00:22.7]} 54... Kg7 {[%clk 0:00:18.4]} 55. Qe5+ {[%clk 0:00:22.9]}
55... Kg8 {[%clk 0:00:18.7]} 56. Qd5+ {[%clk 0:00:23.2]} 56... Kg7 {[%clk
0:00:19]} 57. h5 {[%clk 0:00:23.6]} 57... gxh5 {[%clk 0:00:18.7]} 58. Qg5+
{[%clk 0:00:22.1]} 58... Kh8 {[%clk 0:00:17.9]} 59. Qe5+ {[%clk 0:00:20]} 59...
Kg8 {[%clk 0:00:18.1]} 60. Qd5+ {[%clk 0:00:19.6]} 60... Kg7 {[%clk 0:00:17.9]}
61. gxh5 {[%clk 0:00:20]} 61... Kf6 {[%clk 0:00:15.1]} 62. Kg3 {[%clk
0:00:18.9]} 62... Qb8+ {[%clk 0:00:14]} 63. Kg4 {[%clk 0:00:18.4]} 63... Qc8+
{[%clk 0:00:13.2]} 64. Kf4 {[%clk 0:00:18.5]} 64... Qb8+ {[%clk 0:00:13.4]} 65.
Kf3 {[%clk 0:00:18.4]} 65... Qc8 {[%clk 0:00:13.1]} 66. Qd4+ {[%clk 0:00:18.1]}
66... Kg5 {[%clk 0:00:12.1]} 67. Qe5+ {[%clk 0:00:18.3]} 67... Kh6 {[%clk
0:00:11.1]} 68. Qd6+ {[%clk 0:00:17.3]} 68... Kxh5 {[%clk 0:00:11.1]} 69. Qe7
{[%clk 0:00:17.2]} 69... Qf5+ {[%clk 0:00:09.8]} 70. Kg2 {[%clk 0:00:16.8]}
70... Qg4+ {[%clk 0:00:09.9]} 71. Kf1 {[%clk 0:00:16.8]} 71... Qd1+ {[%clk
0:00:10.5]} 72. Kg2 {[%clk 0:00:17]} 72... Qxb3 {[%clk 0:00:10.9]} 73. Qxh7+
{[%clk 0:00:16.4]} 73... Kg5 {[%clk 0:00:11.5]} 74. Qg7+ {[%clk 0:00:16.7]}
74... Kf5 {[%clk 0:00:11.9]} 75. Qh7+ {[%clk 0:00:16.7]} 75... Ke5 {[%clk
0:00:12.3]} 76. Qh8+ {[%clk 0:00:16.4]} 76... Kd6 {[%clk 0:00:12.6]} 77. Qd8+
{[%clk 0:00:16.2]} 77... Kc6 {[%clk 0:00:13.1]} 78. Qc8+ {[%clk 0:00:16.1]}
78... Kb5 {[%clk 0:00:09.5]} 79. Qb7+ {[%clk 0:00:16.1]} 79... Kc4 {[%clk
0:00:07.7]} 80. Qxa6+ {[%clk 0:00:16.1]} 80... Kc3 {[%clk 0:00:07.5]} 81. Qf6+
{[%clk 0:00:15.2]} 81... Kc2 {[%clk 0:00:07.4]} 82. Qf5+ {[%clk 0:00:14.3]}
82... Kc1 {[%clk 0:00:07.6]} 83. Qc5+ {[%clk 0:00:14]} 83... Kb1 {[%clk
0:00:07.7]} 84. Qf5+ {[%clk 0:00:13.8]} 84... Ka1 {[%clk 0:00:07.5]} 85. Qa5+
{[%clk 0:00:13.5]} 85... Kb1 {[%clk 0:00:07.9]} 86. Qe1+ {[%clk 0:00:13.5]}
86... Ka2 {[%clk 0:00:07.6]} 87. Qd2+ {[%clk 0:00:13.6]} 87... Kb1 {[%clk
0:00:08]} 88. Qe3 {[%clk 0:00:13.4]} 88... Ka2 {[%clk 0:00:08.4]} 89. Qxb3+
{[%clk 0:00:13.1]} 89... Kxb3 {[%clk 0:00:09.3]} 90. Kf3 {[%clk 0:00:13.4]}
90... Kc4 {[%clk 0:00:10.2]} 91. Ke4 {[%clk 0:00:14.3]} 91... Kc5 {[%clk
0:00:10.2]} 92. Ke5 {[%clk 0:00:15.2]} 92... Kc6 {[%clk 0:00:10.5]} 93. Ke6
{[%clk 0:00:15.7]} 93... Kc7 {[%clk 0:00:11.4]} 94. Ke7 {[%clk 0:00:16.1]} 94...
Kc6 {[%clk 0:00:10.6]} 95. f4 {[%clk 0:00:17]} 95... Kd5 {[%clk 0:00:11.5]} 96.
f5 {[%clk 0:00:17.6]} 96... Ke5 {[%clk 0:00:12.4]} 97. f6 {[%clk 0:00:18.2]} 1-0